[Event "Betsys MČR v online bleskovém šachu 2021"]
[Site "Chess.com"]
[Date "2021.04.17"]
[Round "3"]
[White "Lukuluss88"]
[Black "Jacques_se_mas"]
[Result "0-1"]
[WhiteElo "1993"]
[BlackElo "1738"]
[TimeControl "180+1"]
[EndTime "9:28:43 PDT"]
[Termination "Uživatel Jacques_se_mas zvítězil na čas"]

1. c4 {[%clk 0:03:00.9]} 1... b6 {[%clk 0:02:59.1]} 2. Nc3 {[%clk 0:03:00.4]}
2... Bb7 {[%clk 0:02:58.3]} 3. e4 {[%clk 0:03:00.3]} 3... e6 {[%clk 0:02:58.6]}
4. g3 {[%clk 0:02:59.4]} 4... f5 {[%clk 0:02:53.8]} 5. Bg2 {[%clk 0:02:59]} 5...
Nf6 {[%clk 0:02:52.4]} 6. d3 {[%clk 0:02:57.9]} 6... fxe4 {[%clk 0:02:49.4]} 7.
dxe4 {[%clk 0:02:57.5]} 7... Bb4 {[%clk 0:02:49.6]} 8. Bg5 {[%clk 0:02:31.8]}
8... h6 {[%clk 0:02:48.1]} 9. Bxf6 {[%clk 0:02:28.2]} 9... Qxf6 {[%clk
0:02:43.8]} 10. Ne2 {[%clk 0:02:24.9]} 10... Qf7 {[%clk 0:02:39.8]} 11. O-O
{[%clk 0:02:23.8]} 11... O-O {[%clk 0:02:35.8]} 12. a3 {[%clk 0:02:18.1]} 12...
Bxc3 {[%clk 0:02:28.7]} 13. Nxc3 {[%clk 0:02:17.7]} 13... Na6 {[%clk 0:02:28.4]}
14. b4 {[%clk 0:02:16.4]} 14... c5 {[%clk 0:02:26.8]} 15. Rb1 {[%clk 0:02:05.1]}
15... Rac8 {[%clk 0:02:22.4]} 16. b5 {[%clk 0:02:04.5]} 16... Nc7 {[%clk
0:02:21.9]} 17. f4 {[%clk 0:01:59.3]} 17... Ne8 {[%clk 0:02:15.4]} 18. Qd3
{[%clk 0:01:49.2]} 18... Nf6 {[%clk 0:02:12.8]} 19. Rbd1 {[%clk 0:01:47.3]}
19... Rcd8 {[%clk 0:02:10.6]} 20. e5 {[%clk 0:01:47.2]} 20... Bxg2 {[%clk
0:02:09.7]} 21. Kxg2 {[%clk 0:01:46.8]} 21... Nh7 {[%clk 0:02:02.6]} 22. Ne4
{[%clk 0:01:46.6]} 22... Qf5 {[%clk 0:01:53.8]} 23. Nd6 {[%clk 0:01:45.5]} 23...
Qxd3 {[%clk 0:01:53]} 24. Rxd3 {[%clk 0:01:45.3]} 24... g5 {[%clk 0:01:50.1]}
25. f5 {[%clk 0:01:40.8]} 25... exf5 {[%clk 0:01:43.7]} 26. Nxf5 {[%clk
0:01:40.6]} 26... Kh8 {[%clk 0:01:28.7]} 27. Nxh6 {[%clk 0:01:34.5]} 27... Rxf1
{[%clk 0:01:19]} 28. Kxf1 {[%clk 0:01:34.2]} 28... Kg7 {[%clk 0:01:17]} 29. Nf5+
{[%clk 0:01:29.9]} 29... Kg6 {[%clk 0:01:16.5]} 30. g4 {[%clk 0:01:30]} 30...
Nf8 {[%clk 0:01:11.3]} 31. Ne7+ {[%clk 0:01:18]} 31... Kf7 {[%clk 0:01:04.2]}
32. Nc6 {[%clk 0:01:11.5]} 32... Re8 {[%clk 0:01:01.5]} 33. Nxa7 {[%clk
0:00:57.8]} 33... Rxe5 {[%clk 0:01:00]} 34. Nc8 {[%clk 0:00:55.2]} 34... Re6
{[%clk 0:00:40.8]} 35. Nd6+ {[%clk 0:00:50.5]} 35... Kg6 {[%clk 0:00:37.6]} 36.
Nf5 {[%clk 0:00:47.1]} 36... Re4 {[%clk 0:00:30.7]} 37. Rd6+ {[%clk 0:00:40.6]}
37... Kf7 {[%clk 0:00:28.6]} 38. Rxd7+ {[%clk 0:00:32.5]} 38... Nxd7 {[%clk
0:00:26.3]} 39. Nd6+ {[%clk 0:00:32.6]} 39... Ke6 {[%clk 0:00:22.2]} 40. Nxe4
{[%clk 0:00:32.6]} 40... Ne5 {[%clk 0:00:22.5]} 41. Nxg5+ {[%clk 0:00:32]} 41...
Kf6 {[%clk 0:00:20.4]} 42. Ne4+ {[%clk 0:00:32]} 42... Kg6 {[%clk 0:00:19.9]}
43. h3 {[%clk 0:00:29.7]} 43... Nxc4 {[%clk 0:00:20.3]} 44. a4 {[%clk
0:00:27.8]} 44... Nb2 {[%clk 0:00:20]} 45. Nc3 {[%clk 0:00:25.4]} 45... Kg5
{[%clk 0:00:18.6]} 46. Kg2 {[%clk 0:00:25.3]} 46... Nc4 {[%clk 0:00:18.6]} 47.
Kg3 {[%clk 0:00:24.1]} 47... Ne5 {[%clk 0:00:15.2]} 48. h4+ {[%clk 0:00:23.5]}
48... Kg6 {[%clk 0:00:13.8]} 49. h5+ {[%clk 0:00:23.2]} 49... Kg5 {[%clk
0:00:13.3]} 50. Ne4+ {[%clk 0:00:23.4]} 50... Kh6 {[%clk 0:00:11.4]} 51. Kf4
{[%clk 0:00:20.9]} 51... Nc4 {[%clk 0:00:07.1]} 52. Nc3 {[%clk 0:00:20.3]} 52...
Nd2 {[%clk 0:00:05.9]} 53. Kf5 {[%clk 0:00:19.5]} 53... Nf3 {[%clk 0:00:04.1]}
54. Nd5 {[%clk 0:00:19.1]} 54... Nd4+ {[%clk 0:00:03.3]} 55. Ke5 {[%clk
0:00:19.2]} 55... Nf3+ {[%clk 0:00:02.7]} 56. Kd6 {[%clk 0:00:18.9]} 56... c4
{[%clk 0:00:03.1]} 57. Nxb6 {[%clk 0:00:18.7]} 57... c3 {[%clk 0:00:03.4]} 58.
Nc4 {[%clk 0:00:08]} 58... c2 {[%clk 0:00:04.3]} 59. b6 {[%clk 0:00:06.7]} 59...
c1=Q {[%clk 0:00:04.5]} 60. b7 {[%clk 0:00:07]} 60... Qxc4 {[%clk 0:00:04.1]}
61. b8=Q {[%clk 0:00:06.5]} 61... Qf4+ {[%clk 0:00:04.8]} 62. Kd7 {[%clk
0:00:06.5]} 62... Qxb8 {[%clk 0:00:05.5]} 0-1

[Event "Betsys MČR v online bleskovém šachu 2021"]
[Site "Chess.com"]
[Date "2021.04.17"]
[Round "3"]
[White "kecalk"]
[Black "Saygram"]
[Result "0-1"]
[WhiteElo "2137"]
[BlackElo "2402"]
[TimeControl "180+1"]
[EndTime "9:29:44 PDT"]
[Termination "Uživatel Saygram zvítězil na čas"]

1. c4 {[%clk 0:03:00.9]} 1... e6 {[%clk 0:02:59.6]} 2. Nf3 {[%clk 0:03:00.1]}
2... d5 {[%clk 0:02:59.9]} 3. e3 {[%clk 0:02:59.9]} 3... Nf6 {[%clk 0:03:00.1]}
4. Nc3 {[%clk 0:03:00]} 4... Be7 {[%clk 0:03:00.1]} 5. b3 {[%clk 0:03:00]} 5...
O-O {[%clk 0:02:59]} 6. Bb2 {[%clk 0:03:00.2]} 6... c5 {[%clk 0:02:59.3]} 7.
cxd5 {[%clk 0:02:55.3]} 7... Nxd5 {[%clk 0:02:54.9]} 8. Qc2 {[%clk 0:02:54.5]}
8... Nb4 {[%clk 0:02:53.8]} 9. Qb1 {[%clk 0:02:54.1]} 9... b6 {[%clk 0:02:44.8]}
10. a3 {[%clk 0:02:53.7]} 10... N4c6 {[%clk 0:02:44.5]} 11. Bd3 {[%clk
0:02:50.7]} 11... h6 {[%clk 0:02:42.1]} 12. h4 {[%clk 0:02:37.9]} 12... Ba6
{[%clk 0:02:36.7]} 13. Bxa6 {[%clk 0:02:25.4]} 13... Nxa6 {[%clk 0:02:37.6]} 14.
Ne4 {[%clk 0:02:11.8]} 14... Qd5 {[%clk 0:02:19.3]} 15. Qc2 {[%clk 0:02:09.1]}
15... Rfd8 {[%clk 0:02:15.2]} 16. O-O-O {[%clk 0:02:08.2]} 16... Qd3 {[%clk
0:02:13.6]} 17. Ne1 {[%clk 0:02:01.3]} 17... Qxc2+ {[%clk 0:02:13.5]} 18. Kxc2
{[%clk 0:01:59.7]} 18... Nc7 {[%clk 0:02:13.5]} 19. d3 {[%clk 0:01:58.8]} 19...
a5 {[%clk 0:02:10.7]} 20. a4 {[%clk 0:01:52.8]} 20... Nb4+ {[%clk 0:02:10]} 21.
Kb1 {[%clk 0:01:52.7]} 21... Rd7 {[%clk 0:02:02.1]} 22. Bc3 {[%clk 0:01:51.7]}
22... Nca6 {[%clk 0:01:57.4]} 23. f4 {[%clk 0:01:46.7]} 23... Rad8 {[%clk
0:01:57.1]} 24. Nf2 {[%clk 0:01:45.8]} 24... Nd5 {[%clk 0:01:47.1]} 25. Bd2
{[%clk 0:01:41]} 25... Bf6 {[%clk 0:01:45.9]} 26. g4 {[%clk 0:01:39.3]} 26...
Bc3 {[%clk 0:01:40.3]} 27. Rh3 {[%clk 0:01:29.5]} 27... Bxd2 {[%clk 0:01:35.8]}
28. Rxd2 {[%clk 0:01:30.4]} 28... Nab4 {[%clk 0:01:26.1]} 29. Nc2 {[%clk
0:01:22.5]} 29... Nc3+ {[%clk 0:01:15.5]} 30. Kb2 {[%clk 0:01:21.3]} 30... Ncd5
{[%clk 0:01:02]} 31. Nxb4 {[%clk 0:01:14.1]} 31... Nxb4 {[%clk 0:01:01.4]} 32.
e4 {[%clk 0:01:12.6]} 32... Rd4 {[%clk 0:00:59]} 33. Kc3 {[%clk 0:01:12.6]}
33... f6 {[%clk 0:00:55.9]} 34. Re3 {[%clk 0:01:08.8]} 34... Kf7 {[%clk
0:00:55.6]} 35. Nh3 {[%clk 0:01:08.7]} 35... g6 {[%clk 0:00:53.1]} 36. Ng1
{[%clk 0:01:08.7]} 36... R4d7 {[%clk 0:00:51.6]} 37. Nf3 {[%clk 0:01:04.6]}
37... Ke7 {[%clk 0:00:47.8]} 38. Ng1 {[%clk 0:00:45.7]} 38... Nc6 {[%clk
0:00:40.1]} 39. Nf3 {[%clk 0:00:45.8]} 39... Nd4 {[%clk 0:00:39.4]} 40. Rd1
{[%clk 0:00:43.9]} 40... Nxf3 {[%clk 0:00:38.4]} 41. Rxf3 {[%clk 0:00:43.7]}
41... Rd4 {[%clk 0:00:38.6]} 42. Re3 {[%clk 0:00:41.9]} 42... Kf7 {[%clk
0:00:34.9]} 43. Rg1 {[%clk 0:00:41.3]} 43... R8d7 {[%clk 0:00:29.9]} 44. Reg3
{[%clk 0:00:41.3]} 44... g5 {[%clk 0:00:27.9]} 45. hxg5 {[%clk 0:00:34.1]} 45...
hxg5 {[%clk 0:00:27.6]} 46. fxg5 {[%clk 0:00:34.1]} 46... fxg5 {[%clk
0:00:27.7]} 47. Rf1+ {[%clk 0:00:33.9]} 47... Kg7 {[%clk 0:00:25.4]} 48. Rgf3
{[%clk 0:00:33.2]} 48... e5 {[%clk 0:00:21]} 49. Rd1 {[%clk 0:00:31.2]} 49...
R7d6 {[%clk 0:00:20.2]} 50. Rf5 {[%clk 0:00:25.3]} 50... Rxe4 {[%clk 0:00:19.7]}
51. dxe4 {[%clk 0:00:23.1]} 51... Rxd1 {[%clk 0:00:18.6]} 52. Rxe5 {[%clk
0:00:20.9]} 52... Kf6 {[%clk 0:00:18.9]} 53. Rf5+ {[%clk 0:00:20.6]} 53... Kg6
{[%clk 0:00:19.4]} 54. Re5 {[%clk 0:00:20]} 54... Rg1 {[%clk 0:00:18.5]} 55.
Re6+ {[%clk 0:00:19.6]} 55... Kf7 {[%clk 0:00:18.7]} 56. Rxb6 {[%clk 0:00:20.3]}
56... Rxg4 {[%clk 0:00:18.9]} 57. e5 {[%clk 0:00:18.8]} 57... Re4 {[%clk
0:00:18.7]} 58. Rb5 {[%clk 0:00:15.7]} 58... Rxe5 {[%clk 0:00:18.8]} 59. Rxa5
{[%clk 0:00:15.6]} 59... g4 {[%clk 0:00:19.1]} 60. Ra7+ {[%clk 0:00:15.7]} 60...
Kf6 {[%clk 0:00:18.8]} 61. Ra8 {[%clk 0:00:15.4]} 61... Rg5 {[%clk 0:00:17.8]}
62. Rf8+ {[%clk 0:00:14.9]} 62... Ke7 {[%clk 0:00:17.5]} 63. Rf1 {[%clk
0:00:14.6]} 63... g3 {[%clk 0:00:17.5]} 64. Kc4 {[%clk 0:00:14.5]} 64... g2
{[%clk 0:00:16.7]} 65. Rg1 {[%clk 0:00:12.2]} 65... Kd6 {[%clk 0:00:17.4]} 66.
Kb5 {[%clk 0:00:11.6]} 66... Rg4 {[%clk 0:00:16.3]} 67. Rd1+ {[%clk 0:00:09.6]}
67... Kc7 {[%clk 0:00:15.2]} 68. Rg1 {[%clk 0:00:09.5]} 68... Kd6 {[%clk
0:00:15.2]} 69. Rd1+ {[%clk 0:00:09.1]} 69... Ke5 {[%clk 0:00:15.5]} 70. Rg1
{[%clk 0:00:10]} 70... Kd4 {[%clk 0:00:14.8]} 71. a5 {[%clk 0:00:09.7]} 71...
Rg5 {[%clk 0:00:14]} 72. a6 {[%clk 0:00:09.6]} 72... c4+ {[%clk 0:00:14.4]} 73.
Kb4 {[%clk 0:00:07.4]} 73... c3 {[%clk 0:00:14.7]} 74. a7 {[%clk 0:00:07.6]}
74... Rg8 {[%clk 0:00:09.3]} 75. Rxg2 {[%clk 0:00:07.1]} 75... Ra8 {[%clk
0:00:05.8]} 76. Ra2 {[%clk 0:00:06.9]} 76... Kd3 {[%clk 0:00:04.9]} 77. Kb5
{[%clk 0:00:05.3]} 77... c2 {[%clk 0:00:03.6]} 78. Rxc2 {[%clk 0:00:05.5]} 78...
Rxa7 {[%clk 0:00:02.7]} 79. Rc8 {[%clk 0:00:04.5]} 79... Rb7+ {[%clk 0:00:02.7]}
80. Ka4 {[%clk 0:00:04.9]} 80... Kd4 {[%clk 0:00:03]} 81. Rd8+ {[%clk
0:00:04.6]} 81... Kc5 {[%clk 0:00:02.6]} 82. Rc8+ {[%clk 0:00:01.3]} 82... Kd5
{[%clk 0:00:02.4]} 83. b4 {[%clk 0:00:01.2]} 83... Ra7+ {[%clk 0:00:02.4]} 84.
Kb3 {[%clk 0:00:01.9]} 84... Rb7 {[%clk 0:00:02.1]} 0-1

[Event "Betsys MČR v online bleskovém šachu 2021"]
[Site "Chess.com"]
[Date "2021.04.17"]
[Round "4"]
[White "maelic"]
[Black "adambelaska"]
[Result "1-0"]
[WhiteElo "1781"]
[BlackElo "1436"]
[TimeControl "180+1"]
[EndTime "9:32:09 PDT"]
[Termination "Uživatel maelic zvítězil matem"]

1. d4 {[%clk 0:03:00.9]} 1... d5 {[%clk 0:02:50.3]} 2. Bf4 {[%clk 0:03:00.4]}
2... Nf6 {[%clk 0:02:48.6]} 3. e3 {[%clk 0:03:00.7]} 3... Nbd7 {[%clk
0:02:44.6]} 4. c4 {[%clk 0:03:00.3]} 4... e6 {[%clk 0:02:43.1]} 5. Qb3 {[%clk
0:02:58.9]} 5... dxc4 {[%clk 0:02:41.9]} 6. Bxc4 {[%clk 0:02:58.7]} 6... Nb6
{[%clk 0:02:39.3]} 7. Bd3 {[%clk 0:02:58.9]} 7... Nfd5 {[%clk 0:02:38.4]} 8. Bg3
{[%clk 0:02:55.8]} 8... Bd6 {[%clk 0:02:36.1]} 9. Nc3 {[%clk 0:02:55.1]} 9...
Nxc3 {[%clk 0:02:34.8]} 10. bxc3 {[%clk 0:02:56]} 10... O-O {[%clk 0:02:33.7]}
11. Nf3 {[%clk 0:02:51.2]} 11... Bxg3 {[%clk 0:02:29.2]} 12. hxg3 {[%clk
0:02:50.6]} 12... Nd5 {[%clk 0:02:29.3]} 13. Bxh7+ {[%clk 0:02:43.9]} 13... Kh8
{[%clk 0:02:28.5]} 14. Bb1+ {[%clk 0:02:36.5]} 14... Kg8 {[%clk 0:02:24]} 15.
Qc2 {[%clk 0:02:36.4]} 15... g6 {[%clk 0:02:22.4]} 16. Ne5 {[%clk 0:02:26.6]}
16... Nf6 {[%clk 0:02:16.4]} 17. Nxg6 {[%clk 0:02:20.3]} 17... fxg6 {[%clk
0:02:15.3]} 18. Qxg6# {[%clk 0:02:21.2]} 1-0

[Event "Betsys MČR v online bleskovém šachu 2021"]
[Site "Chess.com"]
[Date "2021.04.17"]
[Round "4"]
[White "Trener-Pokrocili"]
[Black "MichalTrhal"]
[Result "1-0"]
[WhiteElo "2244"]
[BlackElo "1923"]
[TimeControl "180+1"]
[EndTime "9:32:36 PDT"]
[Termination "Uživatel Trener-Pokrocili zvítězil po vzdání soupeře"]

1. Nf3 {[%clk 0:03:00.9]} 1... Nf6 {[%clk 0:02:59.1]} 2. c4 {[%clk 0:03:00.7]}
2... b6 {[%clk 0:02:52.4]} 3. Nc3 {[%clk 0:03:00.1]} 3... Bb7 {[%clk 0:02:52.6]}
4. g3 {[%clk 0:02:52]} 4... e6 {[%clk 0:02:52.5]} 5. Bg2 {[%clk 0:02:51.7]} 5...
Be7 {[%clk 0:02:51.5]} 6. O-O {[%clk 0:02:51.6]} 6... O-O {[%clk 0:02:51.4]} 7.
b3 {[%clk 0:02:47.2]} 7... c5 {[%clk 0:02:51.1]} 8. Bb2 {[%clk 0:02:46.3]} 8...
d6 {[%clk 0:02:51.4]} 9. Rc1 {[%clk 0:02:45.5]} 9... Nbd7 {[%clk 0:02:51.3]} 10.
d3 {[%clk 0:02:43.9]} 10... a6 {[%clk 0:02:51.5]} 11. e4 {[%clk 0:02:42.7]}
11... Qc7 {[%clk 0:02:51.5]} 12. Ne1 {[%clk 0:02:42.7]} 12... Rad8 {[%clk
0:02:46.7]} 13. Nc2 {[%clk 0:02:42.3]} 13... Rfe8 {[%clk 0:02:43.5]} 14. Ne3
{[%clk 0:02:42.1]} 14... Nf8 {[%clk 0:02:40.1]} 15. f4 {[%clk 0:02:41.4]} 15...
e5 {[%clk 0:02:30.4]} 16. f5 {[%clk 0:02:31.9]} 16... Bc6 {[%clk 0:02:20]} 17.
g4 {[%clk 0:02:27.4]} 17... b5 {[%clk 0:02:20.3]} 18. g5 {[%clk 0:02:20]} 18...
N6d7 {[%clk 0:02:20.4]} 19. Ncd5 {[%clk 0:02:14.8]} 19... Bxd5 {[%clk 0:02:19]}
20. Nxd5 {[%clk 0:02:14.8]} 20... Qb7 {[%clk 0:02:19.4]} 21. f6 {[%clk 0:02:09]}
1-0

[Event "Betsys MČR v online bleskovém šachu 2021"]
[Site "Chess.com"]
[Date "2021.04.17"]
[Round "4"]
[White "dino5517"]
[Black "lockerbieQ"]
[Result "0-1"]
[WhiteElo "1390"]
[BlackElo "1739"]
[TimeControl "180+1"]
[EndTime "9:32:45 PDT"]
[Termination "Uživatel lockerbieQ zvítězil matem"]

1. e4 {[%clk 0:03:00.9]} 1... c5 {[%clk 0:02:59.6]} 2. Nf3 {[%clk 0:02:59.2]}
2... d6 {[%clk 0:02:59.8]} 3. d4 {[%clk 0:02:59.2]} 3... cxd4 {[%clk 0:03:00.2]}
4. Nxd4 {[%clk 0:02:58.1]} 4... Nf6 {[%clk 0:03:00.7]} 5. Nc3 {[%clk 0:02:56.6]}
5... a6 {[%clk 0:03:00.9]} 6. Bg5 {[%clk 0:02:56.2]} 6... Nbd7 {[%clk
0:02:58.6]} 7. Qf3 {[%clk 0:02:50]} 7... Qc7 {[%clk 0:02:41.2]} 8. g3 {[%clk
0:02:36.3]} 8... e6 {[%clk 0:02:40.2]} 9. Bg2 {[%clk 0:02:34.8]} 9... Be7 {[%clk
0:02:40]} 10. O-O-O {[%clk 0:02:26.6]} 10... b5 {[%clk 0:02:37]} 11. Nb3 {[%clk
0:02:23.9]} 11... Bb7 {[%clk 0:02:34.2]} 12. Rhe1 {[%clk 0:02:21.1]} 12... Rc8
{[%clk 0:02:31.8]} 13. h4 {[%clk 0:02:16.3]} 13... b4 {[%clk 0:02:31.8]} 14.
Bxf6 {[%clk 0:01:59.9]} 14... Bxf6 {[%clk 0:02:23.8]} 15. Qd3 {[%clk 0:01:46.9]}
15... bxc3 {[%clk 0:02:22.6]} 16. bxc3 {[%clk 0:01:44.6]} 16... Qxc3 {[%clk
0:02:20]} 17. Qxd6 {[%clk 0:01:40.9]} 17... Qxc2# {[%clk 0:02:19.1]} 0-1

[Event "Betsys MČR v online bleskovém šachu 2021"]
[Site "Chess.com"]
[Date "2021.04.17"]
[Round "4"]
[White "Figo5144"]
[Black "misacz"]
[Result "0-1"]
[WhiteElo "568"]
[BlackElo "1077"]
[TimeControl "180+1"]
[EndTime "9:32:55 PDT"]
[Termination "Uživatel misacz zvítězil matem"]

1. e4 {[%clk 0:03:00.9]} 1... e6 {[%clk 0:02:58.4]} 2. a3 {[%clk 0:03:00]} 2...
d5 {[%clk 0:02:58.3]} 3. e5 {[%clk 0:02:58.7]} 3... c5 {[%clk 0:02:56.8]} 4. Nf3
{[%clk 0:02:53.9]} 4... Nc6 {[%clk 0:02:55.9]} 5. Be2 {[%clk 0:02:51.4]} 5...
Qb6 {[%clk 0:02:54.3]} 6. b3 {[%clk 0:02:47.6]} 6... Nge7 {[%clk 0:02:51.8]} 7.
Nc3 {[%clk 0:02:46.5]} 7... Nf5 {[%clk 0:02:51.4]} 8. O-O {[%clk 0:02:26.8]}
8... Be7 {[%clk 0:02:39.2]} 9. h3 {[%clk 0:02:25.6]} 9... O-O {[%clk 0:02:38.4]}
10. a4 {[%clk 0:02:21.4]} 10... Qc7 {[%clk 0:02:38.2]} 11. Bd3 {[%clk
0:02:07.7]} 11... Nxe5 {[%clk 0:02:34]} 12. Be2 {[%clk 0:01:54.2]} 12... Nxf3+
{[%clk 0:02:32.2]} 13. Bxf3 {[%clk 0:01:53.5]} 13... Qe5 {[%clk 0:02:19]} 14.
Bb2 {[%clk 0:01:37]} 14... Bd6 {[%clk 0:02:16.4]} 15. Nb5 {[%clk 0:01:30.7]}
15... Qh2# {[%clk 0:02:15.8]} 0-1

[Event "Betsys MČR v online bleskovém šachu 2021"]
[Site "Chess.com"]
[Date "2021.04.17"]
[Round "4"]
[White "Nimrod64"]
[Black "jarda1955"]
[Result "1-0"]
[WhiteElo "2277"]
[BlackElo "1984"]
[TimeControl "180+1"]
[EndTime "9:33:02 PDT"]
[Termination "Uživatel Nimrod64 zvítězil po vzdání soupeře"]

1. d4 {[%clk 0:03:00.9]} 1... d5 {[%clk 0:02:53.7]} 2. Nf3 {[%clk 0:03:00]} 2...
Nf6 {[%clk 0:02:46.6]} 3. c4 {[%clk 0:02:59.1]} 3... dxc4 {[%clk 0:02:44.2]} 4.
Qc2 {[%clk 0:02:56.7]} 4... Nbd7 {[%clk 0:02:35.9]} 5. Qxc4 {[%clk 0:02:54.8]}
5... a6 {[%clk 0:02:35]} 6. a4 {[%clk 0:02:51.1]} 6... e6 {[%clk 0:02:31.9]} 7.
Nc3 {[%clk 0:02:48.1]} 7... Be7 {[%clk 0:02:23.4]} 8. Bf4 {[%clk 0:02:39.4]}
8... c5 {[%clk 0:02:14.2]} 9. dxc5 {[%clk 0:02:37.9]} 9... Bxc5 {[%clk
0:02:02.3]} 10. e3 {[%clk 0:02:35.3]} 10... Qa5 {[%clk 0:01:49.3]} 11. Be2
{[%clk 0:02:29.4]} 11... O-O {[%clk 0:01:48]} 12. O-O {[%clk 0:02:28.2]} 12...
h6 {[%clk 0:01:43.7]} 13. Rfd1 {[%clk 0:02:24.7]} 13... Qb4 {[%clk 0:01:37]} 14.
Qxb4 {[%clk 0:02:17.4]} 14... Bxb4 {[%clk 0:01:35.4]} 15. Bd6 {[%clk 0:02:15.6]}
15... Re8 {[%clk 0:01:33]} 16. Bxb4 {[%clk 0:02:13.3]} 1-0

[Event "Betsys MČR v online bleskovém šachu 2021"]
[Site "Chess.com"]
[Date "2021.04.17"]
[Round "4"]
[White "JaraLinhart"]
[Black "Ondre2836"]
[Result "1-0"]
[WhiteElo "1678"]
[BlackElo "1294"]
[TimeControl "180+1"]
[EndTime "9:33:08 PDT"]
[Termination "Uživatel JaraLinhart zvítězil matem"]

1. e4 {[%clk 0:02:59.4]} 1... d5 {[%clk 0:02:59.7]} 2. exd5 {[%clk 0:02:58.8]}
2... Qxd5 {[%clk 0:02:59.2]} 3. d4 {[%clk 0:02:58.4]} 3... Nf6 {[%clk
0:02:57.8]} 4. Nf3 {[%clk 0:02:57.4]} 4... Bg4 {[%clk 0:02:56.6]} 5. Be2 {[%clk
0:02:57.5]} 5... Nc6 {[%clk 0:02:43.8]} 6. O-O {[%clk 0:02:53.7]} 6... Bxf3
{[%clk 0:02:37.5]} 7. Bxf3 {[%clk 0:02:53.4]} 7... Qxd4 {[%clk 0:02:36.7]} 8.
Bxc6+ {[%clk 0:02:53.1]} 8... bxc6 {[%clk 0:02:34]} 9. Qxd4 {[%clk 0:02:53]}
9... Nd5 {[%clk 0:02:32.3]} 10. Qc4 {[%clk 0:02:35.9]} 10... Kd7 {[%clk
0:02:29.9]} 11. Nc3 {[%clk 0:02:23.2]} 11... Nxc3 {[%clk 0:02:27.1]} 12. Qxc3
{[%clk 0:02:23]} 12... e6 {[%clk 0:02:23.6]} 13. Bf4 {[%clk 0:02:20.2]} 13...
Rg8 {[%clk 0:02:22.5]} 14. Rad1+ {[%clk 0:02:16.7]} 14... Bd6 {[%clk 0:02:21.1]}
15. Qc5 {[%clk 0:02:11]} 15... Rad8 {[%clk 0:02:18.5]} 16. Bxd6 {[%clk
0:01:54.4]} 16... cxd6 {[%clk 0:02:17.1]} 17. Qxd6+ {[%clk 0:01:53.5]} 17... Kc8
{[%clk 0:02:17]} 18. Qxc6+ {[%clk 0:01:53.7]} 18... Kb8 {[%clk 0:02:16.9]} 19.
Rd7 {[%clk 0:01:52.7]} 19... Rxd7 {[%clk 0:02:15.3]} 20. Qxd7 {[%clk 0:01:52.1]}
20... Rc8 {[%clk 0:02:14.3]} 21. Rd1 {[%clk 0:01:51.6]} 21... Rc7 {[%clk
0:02:12.7]} 22. Qb5+ {[%clk 0:01:51.2]} 22... Rb7 {[%clk 0:02:12.1]} 23. Rd8+
{[%clk 0:01:51.1]} 23... Kc7 {[%clk 0:02:11.3]} 24. Rd7+ {[%clk 0:01:51.2]}
24... Kc8 {[%clk 0:02:10.2]} 25. Qxb7# {[%clk 0:01:52.1]} 1-0

[Event "Betsys MČR v online bleskovém šachu 2021"]
[Site "Chess.com"]
[Date "2021.04.17"]
[Round "4"]
[White "bumurubac"]
[Black "handlovskyjachym"]
[Result "0-1"]
[WhiteElo "1012"]
[BlackElo "1364"]
[TimeControl "180+1"]
[EndTime "9:33:14 PDT"]
[Termination "Uživatel handlovskyjachym zvítězil po vzdání soupeře"]

1. e3 {[%clk 0:03:00.9]} 1... c5 {[%clk 0:02:58]} 2. Bc4 {[%clk 0:03:00.3]} 2...
d6 {[%clk 0:02:54.8]} 3. Qh5 {[%clk 0:02:58.8]} 3... e6 {[%clk 0:02:45.9]} 4.
Nf3 {[%clk 0:02:57]} 4... Nf6 {[%clk 0:02:45.8]} 5. Qh3 {[%clk 0:02:51.6]} 5...
g6 {[%clk 0:02:45.4]} 6. Bb5+ {[%clk 0:02:51.3]} 6... Bd7 {[%clk 0:02:44.7]} 7.
Bxd7+ {[%clk 0:02:49.7]} 7... Nbxd7 {[%clk 0:02:44.9]} 8. Ng5 {[%clk 0:02:47.2]}
8... Nd5 {[%clk 0:02:38.7]} 9. Qf3 {[%clk 0:02:45.2]} 9... Qxg5 {[%clk
0:02:37.9]} 10. Nc3 {[%clk 0:02:39.8]} 10... Nxc3 {[%clk 0:02:31.1]} 11. dxc3
{[%clk 0:02:38.6]} 11... d5 {[%clk 0:02:30]} 12. e4 {[%clk 0:02:36.7]} 12...
dxe4 {[%clk 0:02:14.8]} 13. Bxg5 {[%clk 0:02:35.8]} 13... exf3 {[%clk
0:02:14.9]} 14. gxf3 {[%clk 0:02:35.6]} 14... Bg7 {[%clk 0:02:11.7]} 15. O-O-O
{[%clk 0:02:34.7]} 15... Nf6 {[%clk 0:02:08.2]} 16. Bxf6 {[%clk 0:02:33.7]}
16... Bxf6 {[%clk 0:02:08.2]} 17. Rd3 {[%clk 0:02:33]} 17... O-O {[%clk
0:02:08]} 18. Rhd1 {[%clk 0:02:32.1]} 18... Rad8 {[%clk 0:02:08.4]} 19. Rxd8
{[%clk 0:02:31.1]} 19... Rxd8 {[%clk 0:02:08.3]} 20. Rxd8+ {[%clk 0:02:30]}
20... Bxd8 {[%clk 0:02:08.5]} 21. b4 {[%clk 0:02:29.7]} 21... cxb4 {[%clk
0:02:08.6]} 22. cxb4 {[%clk 0:02:29.5]} 22... Bb6 {[%clk 0:02:09.2]} 23. a4
{[%clk 0:02:26.5]} 23... Bxf2 {[%clk 0:02:08.9]} 24. b5 {[%clk 0:02:26.5]} 24...
Bg1 {[%clk 0:02:07.8]} 25. a5 {[%clk 0:02:23.8]} 25... Bxh2 {[%clk 0:02:06.5]}
26. b6 {[%clk 0:02:22.9]} 26... axb6 {[%clk 0:02:06.5]} 27. axb6 {[%clk
0:02:22.2]} 27... Bg1 {[%clk 0:02:06.3]} 28. Kd1 {[%clk 0:02:21.7]} 28... Bxb6
{[%clk 0:02:06.6]} 29. c3 {[%clk 0:02:19.5]} 29... h5 {[%clk 0:02:06.4]} 30. Kd2
{[%clk 0:02:19.5]} 30... h4 {[%clk 0:02:06.8]} 31. f4 {[%clk 0:02:18.3]} 31...
h3 {[%clk 0:02:07.2]} 32. c4 {[%clk 0:02:18.5]} 32... h2 {[%clk 0:02:07.7]} 33.
c5 {[%clk 0:02:18.7]} 33... h1=Q {[%clk 0:02:06.3]} 34. c6 {[%clk 0:02:18.3]}
34... bxc6 {[%clk 0:02:06.3]} 0-1